bitfinex/quotes_ETHUSD_20250422
["timestamp","ask_amount","ask_price","bid_price","bid_amount"]
[1745296683024,6.32351081,1581.4,1581.3,0.26772251]
[1745296684117,12.40351081,1581.4,1581.3,0.26772251]
[1745296685043,6.08,1581.4,1581.3,4.06452251]
[1745296685250,12.31332081,1581.4,1581.3,4.06452251]
[1745296687850,12.31332081,1581.4,1581.3,0.26772251]
[1745296688015,14.80931361,1581.4,1581.3,0.26772251]
[1745296692117,15.13898822,1581.4,1581.3,0.26772251]
[1745296692321,15.89808822,1581.4,1581.3,0.26772251]
[1745296696963,15.89808822,1581.4,1581.3,0.25772251]
[1745296698055,15.89808822,1581.4,1581.3,1e-08]
[1745296698366,7.08341065,1581.2,1581.1,5.346]
[1745296698656,8.42416196,1581.2,1581.1,5.346]
[1745296699828,6.32511068,1581.0,1580.9,3.62950379]
[1745296701757,12.31492068,1581.0,1580.9,3.62950379]
[1745296702058,6.32551078,1580.9,1580.8,5.346]
[1745296702264,12.31532078,1580.9,1580.8,5.346]
[1745296702422,14.88780388,1580.9,1580.8,5.346]
[1745296702836,12.31532078,1580.9,1580.8,5.346]
[1745296705661,12.31532078,1580.9,1580.8,5.54247113]
[1745296707338,12.6450029,1580.9,1580.8,5.54247113]
[1745296710912,12.6450029,1580.9,1580.8,5.24247113]
[1745296712272,6.31949212,1580.9,1580.8,9.06537113]
[1745296712435,5.98981,1580.9,1580.8,9.06537113]
[1745296712634,6.32512484,1581.0,1580.9,3.0]
[1745296712866,6.32512484,1581.0,1580.9,6.62950379]
[1745296713067,6.32512484,1581.0,1580.9,6.82597492]
[1745296713833,6.32495336,1581.1,1581.0,0.8229]
[1745296714268,6.32495336,1581.1,1581.0,1.01937113]
[1745296714872,6.32495336,1581.1,1581.0,0.19647113]
[1745296719374,8.29961032,1581.1,1581.0,0.19647113]
[1745296722375,14.28942032,1581.1,1581.0,0.19647113]
[1745296725662,20.61435744,1581.1,1580.9,3.62950379]
[1745296725882,6.32511068,1581.0,1580.9,3.62950379]
[1745296726296,5.98981,1581.1,1581.0,0.7935]
[1745296726489,12.31452064,1581.1,1581.0,0.7935]
[1745296726685,5.98981,1581.1,1581.0,0.7935]
[1745296726929,12.64827292,1581.3,1581.1,0.7935]
[1745296727199,12.64827292,1581.3,1581.1,9.76900379]
[1745296727910,6.32406679,1581.3,1581.2,0.19248079]
[1745296728087,6.32431065,1581.2,1581.1,12.76900379]
[1745296728399,6.32431065,1581.2,1581.1,12.95762788]
[1745296736422,6.32431065,1581.2,1581.1,12.16412788]
[1745296736624,8.22155888,1581.2,1581.1,12.16412788]
[1745296737326,6.32431065,1581.2,1581.1,12.16412788]
[1745296739755,6.32406679,1581.3,1581.2,0.7888]
[1745296740216,6.32406679,1581.3,1581.2,0.97529647]
[1745296740541,12.31357393,1581.4,1581.2,3.97529647]
[1745296740708,6.32353547,1581.4,1581.3,3.62950379]
[1745296740907,6.65290198,1581.5,1581.3,6.62950379]
[1745296741205,6.32203243,1581.8,1581.5,0.7888]
[1745296741422,6.65166736,1581.8,1581.6,9.03772334]
[1745296741587,0.32963493,1581.8,1581.7,0.7888]
[1745296741819,5.98981,1582.0,1581.7,3.7888]
[1745296742097,12.9716257,1582.1,1581.9,3.62950379]
[1745296742320,6.32111251,1582.0,1581.9,6.62950379]
[1745296742631,6.32111251,1582.0,1581.9,6.81015133]
[1745296746814,6.32111251,1582.0,1581.9,7.28012397]
[1745296752736,6.32111251,1582.0,1581.9,6.81015133]
[1745296753038,7.58531543,1582.0,1581.9,0.18064754]
[1745296753641,6.32191174,1581.8,1581.7,8.342]
[1745296754439,6.3216363,1581.9,1581.7,8.342]
[1745296754629,6.3216363,1581.9,1581.8,6.62950379]
[1745296756756,12.64270185,1582.0,1581.8,7.39140379]
[1745296757108,6.3215121,1581.9,1581.8,7.39140379]
[1745296757610,6.32130152,1582.0,1581.8,7.56141912]
[1745296757817,6.32095991,1582.1,1581.9,3.0]
[1745296758015,6.32095991,1582.1,1582.0,6.62950379]
[1745296758548,6.32095991,1582.1,1582.0,6.79951912]
[1745296758840,6.3201206,1582.3,1582.0,7.56141912]
[1745296758912,6.3201206,1582.3,1582.2,3.62950379]
[1745296759113,6.31975176,1582.4,1582.2,3.79779193]
[1745296759315,6.31975176,1582.4,1582.2,6.79779193]
[1745296760744,6.31991404,1582.3,1582.2,6.79779193]
[1745296761414,6.31975176,1582.4,1582.2,6.79779193]
[1745296762284,6.31991404,1582.3,1582.2,7.28301806]
[1745296762857,6.31975176,1582.4,1582.3,0.7619]
[1745296763149,12.30878095,1582.6,1582.3,0.92859406]
[1745296763314,12.30878095,1582.6,1582.5,3.62950379]
[1745296763713,12.30878095,1582.6,1582.5,9.13719785]
[1745296765751,12.30878095,1582.6,1582.5,5.50769406]
[1745296766271,6.31897095,1582.6,1582.5,5.50769406]
[1745296769498,8.89132988,1582.6,1582.5,5.50769406]
[1745296773064,9.65662988,1582.6,1582.5,5.50769406]
[1745296773277,9.65662988,1582.6,1582.5,0.16669406]
[1745296773444,15.64643988,1582.6,1582.5,0.16669406]
[1745296773648,7.08521404,1582.3,1582.2,5.34]
[1745296774051,7.08521404,1582.3,1582.2,0.15580404]
[1745296774052,13.07502404,1582.3,1582.2,0.15580404]
[1745296774346,6.32111251,1582.0,1581.9,8.96950379]
[1745296774549,6.32111251,1582.0,1581.9,9.11208052]
[1745296774762,6.32111251,1582.0,1581.9,12.11208052]
[1745296777346,6.32111251,1582.0,1581.9,12.90688052]
[1745296777547,6.32090121,1582.1,1581.9,12.90688052]
[1745296777894,12.64194751,1582.1,1581.9,12.90688052]
[1745296778183,6.32090121,1582.1,1581.9,12.90688052]
[1745296778475,12.64194144,1582.1,1581.9,12.90688052]
[1745296778642,6.32090121,1582.1,1581.9,12.90688052]
[1745296779266,6.32048467,1582.2,1581.9,12.90688052]
[1745296779454,6.32048467,1582.2,1582.1,3.62950379]
[1745296779862,6.32048467,1582.2,1582.1,3.77579895]
[1745296780444,6.32048467,1582.2,1582.1,4.57839895]
[1745296780673,6.65007074,1582.2,1582.1,4.57839895]
[1745296781055,6.65007074,1582.2,1582.1,3.77579895]
[1745296781274,7.94708814,1582.2,1582.1,3.77579895]
[1745296782264,6.65007074,1582.2,1582.1,3.77579895]
[1745296783489,0.32958607,1582.2,1582.1,6.77579895]
[1745296783648,0.32958607,1582.2,1582.1,7.57839895]
[1745296783848,0.32958607,1582.2,1582.1,3.94889516]
[1745296784048,6.32010322,1582.3,1582.2,3.0]
[1745296784350,6.32010322,1582.3,1582.2,6.77672815]
[1745296784681,6.32010322,1582.3,1582.2,12.11672815]
[1745296794156,6.31898597,1582.6,1582.3,3.0]
[1745296794356,6.31911532,1582.5,1582.4,0.14563076]
[1745296794661,6.31911532,1582.5,1582.4,6.77513455]
[1745296796087,6.31911532,1582.5,1582.4,7.25085378]
[1745296796765,6.31911532,1582.5,1582.4,6.77513455]
[1745296797868,7.11651532,1582.5,1582.4,6.77513455]
[1745296799472,7.11651532,1582.5,1582.4,3.77513455]
[1745296799814,6.31911532,1582.5,1582.4,3.77513455]
[1745296805912,6.31911532,1582.5,1582.4,9.11413455]
[1745296809467,6.31911532,1582.5,1582.4,9.90153455]
[1745296809662,12.63789484,1582.6,1582.4,9.90153455]
[1745296809986,6.31890664,1582.6,1582.5,3.0]
[1745296810161,6.31890664,1582.6,1582.5,3.13872659]
[1745296811613,6.64846083,1582.6,1582.5,3.13872659]
[1745296816494,6.31890664,1582.6,1582.5,3.13872659]
[1745296820721,6.64846226,1582.6,1582.5,3.13872659]
[1745296822421,6.31890664,1582.6,1582.5,3.13872659]
[1745296823821,6.31851093,1582.7,1582.5,0.95562659]
[1745296823985,6.31851093,1582.7,1582.6,3.62950379]
[1745296824186,6.31776429,1582.9,1582.7,0.8169]
[1745296824402,6.31776429,1582.9,1582.8,8.96750379]
[1745296824619,6.31776429,1582.9,1582.8,9.10450468]
[1745296831529,6.31776429,1582.9,1582.8,9.25079229]
[1745296832351,8.29562116,1582.9,1582.8,5.6212885]
[1745296832631,9.12182116,1582.9,1582.8,5.6212885]
[1745296833525,9.12182116,1582.9,1582.8,0.2832885]
[1745296833728,6.3183168,1582.7,1582.6,8.337]
[1745296833933,6.3183168,1582.7,1582.6,8.59587266]
[1745296834632,6.31811078,1582.8,1582.6,9.41277266]
[1745296834933,6.31811078,1582.8,1582.7,3.62950379]
[1745296835465,6.31811078,1582.8,1582.7,3.88983454]
[1745296835641,12.3075595,1582.9,1582.7,4.37473302]
[1745296835851,12.3075595,1582.9,1582.8,0.8169]
[1745296836339,12.3075595,1582.9,1582.8,1.07762845]
[1745296837462,6.31693311,1583.1,1582.8,4.07762845]
[1745296837755,6.31718696,1583.0,1582.8,4.07762845]
[1745296838849,6.31718696,1583.0,1582.9,3.62950379]
[1745296839141,6.31718696,1583.0,1582.9,3.88744867]
[1745296843154,6.64671961,1583.0,1582.9,3.88744867]
[1745296846257,0.751,1582.7,1582.3,24.92490759]
[1745296846458,6.31951466,1582.4,1582.3,24.92490759]
[1745296846623,6.31951466,1582.4,1582.3,30.26090759]
[1745296847451,6.31951466,1582.4,1582.3,33.26090759]
[1745296847648,6.31951466,1582.4,1582.3,33.49483898]
[1745296848549,6.31951466,1582.4,1582.3,33.02643518]
[1745296848960,6.31951466,1582.4,1582.3,33.4968333]
[1745296851531,6.31890513,1582.6,1582.5,0.7781]
[1745296851725,6.31849043,1582.7,1582.5,4.40760379]
[1745296851959,12.63709863,1582.7,1582.5,4.47078707]
[1745296852161,6.31849043,1582.7,1582.6,0.23393139]
[1745296861276,6.31849043,1582.7,1582.6,8.57093139]
[1745296861608,6.31810581,1582.8,1582.6,8.57093139]
[1745296861806,6.31810581,1582.8,1582.7,7.42860379]
[1745296862109,5.98981,1583.0,1582.7,11.36171104]
[1745296862110,6.31766594,1582.9,1582.7,11.36171104]
[1745296862270,6.31766594,1582.9,1582.7,11.29853363]
[1745296862470,6.31731347,1583.0,1582.7,8.29853363]
[1745296862671,6.31731347,1583.0,1582.9,3.62950379]
[1745296862871,6.31731347,1583.0,1582.9,3.86966473]
[1745296864293,6.31731347,1583.0,1582.9,4.3515584]
[1745296866693,6.31731347,1583.0,1582.9,3.86966473]
[1745296867031,8.29507715,1583.0,1582.9,9.20566473]
[1745296867388,8.29507715,1583.0,1582.9,5.57616094]
[1745296867922,9.12157715,1583.0,1582.9,5.57616094]
[1745296870617,6.31731347,1583.0,1582.9,5.57616094]
[1745296870831,6.31731347,1583.0,1582.9,8.57616094]
[1745296880335,7.06871347,1583.0,1582.9,8.57616094]
[1745296885869,7.06871347,1583.0,1582.9,5.57616094]
[1745296886151,13.05852347,1583.0,1582.9,0.24016094]
[1745296886372,15.6277577,1583.0,1582.9,0.24016094]
[1745296886541,6.31791761,1582.8,1582.7,3.62950379]
[1745296888844,6.31791761,1582.8,1582.7,6.62950379]
[1745296891068,6.31791761,1582.8,1582.6,8.335]
[1745296891069,6.3183168,1582.7,1582.6,8.335]
[1745296892771,6.3183168,1582.7,1582.6,8.57250986]
[1745296900677,8.97445121,1582.7,1582.6,8.57250986]
[1745296900886,7.0790168,1582.7,1582.6,8.57250986]
[1745296901450,6.3183168,1582.7,1582.6,8.57250986]
[1745296916987,6.3183168,1582.7,1582.6,3.23750986]
[1745296917312,6.3183168,1582.7,1582.6,4.83239277]
[1745296920580,6.3183168,1582.7,1582.6,1.83239277]
[1745296920787,6.31791761,1582.8,1582.6,1.83239277]
[1745296921103,6.31791761,1582.8,1582.7,1.59488291]
[1745296921399,6.31791761,1582.8,1582.7,1.83345307]
[1745296922818,6.31726628,1583.0,1582.8,3.8089]
[1745296922968,12.63401425,1583.1,1582.9,6.92988291]
[1745296923167,6.31698833,1583.1,1583.0,3.18976582]
[1745296923372,6.31698833,1583.1,1583.0,3.99866582]
[1745296923579,6.31698833,1583.1,1583.0,2.40378291]
[1745296923814,6.31698833,1583.1,1583.0,2.64116016]
[1745296924014,6.31698833,1583.1,1583.0,1.83226016]
[1745296925112,6.31698833,1583.1,1583.0,4.83226016]
[1745296925316,6.31698833,1583.1,1583.0,6.86336311]
[1745296925529,6.31650976,1583.2,1583.0,6.86336311]
[1745296926209,6.31650976,1583.2,1583.0,6.92652609]
[1745296926397,6.31650976,1583.2,1583.0,6.86336311]
[1745296927916,6.31672035,1583.1,1583.0,6.86336311]
[1745296929111,6.31650976,1583.2,1583.0,6.86336311]
[1745296929316,12.63316962,1583.2,1583.0,6.86336311]
[1745296929815,12.63316962,1583.2,1583.0,6.92652614]
[1745296930498,12.63316962,1583.2,1583.0,6.86336311]
[1745296931015,6.31650976,1583.2,1583.0,6.86336311]
[1745296931190,6.31650976,1583.2,1583.0,6.92652615]
[1745296931523,12.63310973,1583.2,1583.0,6.92652615]
[1745296931720,6.31650976,1583.2,1583.0,6.86336311]
[1745296932034,6.31650976,1583.2,1583.0,6.92652616]
[1745296932227,6.31650976,1583.2,1583.0,6.86336311]
[1745296933022,6.31672035,1583.1,1583.0,6.86336311]
[1745296935425,12.6331876,1583.2,1583.0,6.86336311]
[1745296935626,6.31672035,1583.1,1583.0,6.86336311]
[1745296937820,7.65912336,1583.1,1583.0,0.23737725]
[1745296938013,8.44992336,1583.1,1583.0,0.23737725]
[1745296938213,8.44992336,1583.1,1582.7,5.333]
[1745296938214,6.31791761,1582.8,1582.7,5.333]
[1745296943133,7.10871761,1582.8,1582.7,5.333]
[1745296943301,9.05034118,1582.8,1582.7,5.333]
[1745296944624,9.05034118,1582.8,1582.5,3.62598586]
[1745296944625,6.31911532,1582.5,1582.4,5.334]
[1745296945428,6.31911532,1582.5,1582.4,8.334]
[1745296948233,12.30892532,1582.5,1582.4,8.334]
[1745296948534,14.25205946,1582.5,1582.4,8.334]
[1745296951740,12.30892532,1582.5,1582.4,9.1123]
[1745296952526,12.30892532,1582.5,1582.4,9.29857502]
[1745296953143,12.30892532,1582.5,1582.4,8.52027502]
[1745296953942,6.31911532,1582.5,1582.4,8.52027502]
[1745296963259,7.07861532,1582.5,1582.4,8.52027502]
[1745296963446,9.0502395,1582.5,1582.4,8.32027502]
[1745296967922,6.31911532,1582.5,1582.4,8.32027502]
[1745296969839,6.31911532,1582.5,1582.4,11.94626088]
[1745296972457,6.31911532,1582.5,1582.4,8.32027502]
[1745296974088,7.11661532,1582.5,1582.4,8.32027502]
[1745296974293,6.31911532,1582.5,1582.4,11.94626088]
[1745296974495,6.31851488,1582.7,1582.5,3.0]
[1745296974645,6.318069,1582.8,1582.7,0.7702]
[1745296975062,6.318069,1582.8,1582.7,0.95978388]
[1745296976883,6.31672035,1583.1,1582.7,3.95978388]
[1745296977088,6.31672035,1583.1,1582.8,8.95898586]
[1745296977089,6.31781508,1582.9,1582.8,8.95898586]
[1745296977385,6.31781508,1582.9,1582.8,9.14539366]
[1745296980488,6.31781508,1582.9,1582.8,9.61172397]
[1745296984301,6.31729902,1583.0,1582.9,3.0]
[1745296984468,12.30630856,1583.2,1582.9,3.8333702]
[1745296984667,6.31649856,1583.2,1583.1,3.0]
[1745296985198,6.31649856,1583.2,1583.1,3.17926184]
[1745296986192,12.6323601,1583.3,1583.1,3.94946184]
[1745296986385,6.31609926,1583.3,1583.1,3.94946184]
[1745296987502,6.31632137,1583.2,1583.1,3.94946184]
[1745296992041,6.31632137,1583.2,1583.1,3.17926184]
[1745296992210,7.57956343,1583.2,1583.1,3.17926184]
[1745296993376,6.31632137,1583.2,1583.1,3.17926184]
[1745296995171,6.31632137,1583.2,1583.1,0.17926184]
[1745296995609,6.31672035,1583.1,1583.0,3.0]
[1745296997714,6.31672035,1583.1,1583.0,3.17304458]
[1745297004979,7.11982035,1583.1,1583.0,3.17304458]
[1745297005174,9.09508599,1583.1,1583.0,3.17304458]
[1745297006508,9.09508599,1583.1,1583.0,0.17304458]
[1745297007010,7.12061847,1582.9,1582.8,5.333]
[1745297009627,13.11042847,1582.9,1582.8,5.333]
[1745297009984,6.31871603,1582.6,1582.5,5.331]
[1745297010493,6.31871603,1582.6,1582.5,8.95698586]
[1745297012715,6.31871603,1582.6,1582.5,9.60578974]
[1745297013022,6.31871603,1582.6,1582.5,9.12416486]
[1745297016017,6.31871603,1582.6,1582.5,5.498179]
[1745297016218,8.29459902,1582.6,1582.5,5.498179]
[1745297016518,8.29459902,1582.6,1582.5,8.498179]
[1745297016988,6.31871603,1582.6,1582.5,8.498179]
[1745297019299,6.31871603,1582.6,1582.5,12.12416486]
[1745297025142,7.07881603,1582.6,1582.5,12.12416486]
[1745297027115,6.31871603,1582.6,1582.5,12.12416486]
[1745297037665,6.31871603,1582.6,1582.1,3.62598586]
[1745297037666,6.31991404,1582.3,1582.1,3.62598586]
[1745297037873,6.31991404,1582.3,1582.0,5.331]
[1745297037874,6.32071297,1582.1,1582.0,11.95698586]
[1745297038452,6.32071297,1582.1,1582.0,12.4310533]
[1745297041354,12.30995514,1582.3,1582.1,3.7817]
[1745297041574,6.32031348,1582.2,1582.1,3.7817]
[1745297042866,6.32014514,1582.3,1582.1,3.84490124]
[1745297043026,6.32014514,1582.3,1582.2,3.62598586]
[1745297045336,6.32014514,1582.3,1582.2,3.79299853]
[1745297045941,8.2918008,1582.3,1582.2,3.79299853]
[1745297046502,8.2918008,1582.3,1582.2,0.16701267]
[1745297046875,6.32031348,1582.2,1582.1,3.0]
[1745297049164,7.10351348,1582.2,1582.1,3.0]
[1745297050079,6.32071297,1582.1,1582.0,8.95698586]
[1745297050237,6.32071297,1582.1,1582.0,11.95698586]
[1745297054543,6.32071297,1582.1,1582.0,15.58297172]
[1745297054748,6.32031348,1582.2,1582.1,3.7604]
[1745297057690,6.32031348,1582.2,1582.1,3.93178252]
[1745297057978,6.32013351,1582.3,1582.1,3.99498287]
[1745297058478,6.32013351,1582.3,1582.2,3.62598586]
[1745297059096,6.32013351,1582.3,1582.2,3.79736838]
[1745297059302,6.32013351,1582.3,1582.2,4.27690693]
[1745297059880,6.32013351,1582.3,1582.2,7.27690693]
[1745297062603,6.31974097,1582.4,1582.2,7.27690693]
[1745297062802,6.31934273,1582.5,1582.2,7.27690693]
[1745297062803,6.31934273,1582.5,1582.3,3.7604]
[1745297063097,6.31934273,1582.5,1582.4,9.12611747]
[1745297063600,6.31934273,1582.5,1582.4,12.12611747]
[1745297070518,6.31890168,1582.6,1582.4,12.12611747]
[1745297070678,12.63800592,1582.6,1582.4,12.18930448]
[1745297071372,6.31911532,1582.5,1582.4,12.18930448]
[1745297071616,6.31911532,1582.5,1582.4,12.12611747]
[1745297084027,6.31847453,1582.7,1582.5,3.0]
[1745297084219,6.31847453,1582.7,1582.6,3.62598586]
[1745297084419,6.31847453,1582.7,1582.6,3.78651185]
[1745297088045,8.2139442,1582.7,1582.6,3.78651185]
[1745297088529,8.2139442,1582.7,1582.6,9.11651185]
[1745297095300,8.2139442,1582.7,1582.6,7.08534673]
[1745297098622,6.31847453,1582.7,1582.6,7.08534673]
[1745297102347,6.31847453,1582.7,1582.6,5.49052599]
[1745297102513,7.12737453,1582.7,1582.6,5.49052599]
[1745297105149,7.12737453,1582.7,1582.6,7.08534673]
[1745297106339,13.11718453,1582.7,1582.6,7.08534673]
[1745297106543,15.6925253,1582.7,1582.6,7.08534673]
[1745297109259,14.8836253,1582.7,1582.6,7.08534673]
[1745297110549,12.30828453,1582.7,1582.6,7.08534673]
[1745297112244,6.31847453,1582.7,1582.6,7.08534673]
[1745297116572,12.63631983,1582.8,1582.6,10.08534673]
[1745297116869,6.31811056,1582.8,1582.7,2.38942074]
[1745297117240,6.31811056,1582.8,1582.7,2.54954962]
[1745297117440,6.31811056,1582.8,1582.7,1.75494962]
[1745297122476,6.31696734,1583.1,1582.7,5.54954962]
[1745297122644,6.31653536,1583.2,1583.1,3.0]
[1745297122850,6.31609653,1583.3,1583.1,4.59482074]
[1745297123151,6.31609653,1583.3,1583.2,1.7508471]
[1745297123348,6.31609653,1583.3,1583.2,0.15602636]
[1745297123950,6.31632137,1583.2,1583.1,6.6258644]
[1745297124311,6.31632137,1583.2,1583.1,6.78175845]
[1745297131983,6.31632137,1583.2,1583.1,3.15589405]
[1745297132196,8.97097438,1583.2,1583.1,3.15589405]
[1745297132350,8.97097438,1583.2,1583.1,0.15589405]
[1745297132351,14.96078438,1583.2,1583.1,0.15589405]
[1745297132757,6.31791761,1582.8,1582.7,3.6258644]
[1745297132982,6.31791761,1582.8,1582.7,6.77355524]
[1745297133261,6.31791761,1582.8,1582.7,3.14769084]
[1745297133469,6.97421914,1582.8,1582.7,0.14769084]
[1745297133790,6.97421914,1582.8,1582.6,5.325]
[1745297133791,6.3183168,1582.7,1582.6,5.325]
[1745297133989,6.31911532,1582.5,1582.4,6.6258644]
[1745297139402,6.31889908,1582.6,1582.4,6.6258644]
[1745297139770,6.31911532,1582.5,1582.4,6.6258644]
[1745297142909,6.31951466,1582.4,1582.0,3.6258644]
[1745297143073,6.32111251,1582.0,1581.9,29.7768644]
[1745297143277,6.32111251,1582.0,1581.9,32.7768644]
[1745297144711,6.32111251,1582.0,1581.9,29.7768644]
[1745297145012,6.32111251,1582.0,1581.9,32.7768644]
[1745297147618,6.32111251,1582.0,1581.9,32.91186111]
[1745297151354,6.32089486,1582.1,1581.9,33.69406111]
[1745297151825,6.32089486,1582.1,1582.0,3.0]
[1745297152212,6.32089486,1582.1,1582.0,3.13499671]
[1745297153805,6.32047555,1582.2,1582.0,3.13499671]
[1745297154114,6.32047555,1582.2,1582.1,3.6258644]
[1745297154619,6.32047555,1582.2,1582.1,3.76086111]
[1745297161235,6.3200885,1582.3,1582.1,3.76086111]
[1745297161525,6.3200885,1582.3,1582.1,4.59316111]
[1745297161822,12.64030705,1582.3,1582.1,4.59316111]
[1745297162926,6.3200885,1582.3,1582.1,4.59316111]
[1745297163132,6.32031348,1582.2,1582.1,3.76086111]
[1745297164425,6.3200885,1582.3,1582.1,3.76086111]
[1745297169235,6.32031348,1582.2,1582.1,3.76086111]
[1745297170327,12.64033138,1582.3,1582.1,3.76086111]
[1745297172049,6.3200885,1582.3,1582.2,3.0]
[1745297172213,6.3200885,1582.3,1582.2,3.14293499]
[1745297173347,6.3200885,1582.3,1582.2,4.73856394]
[1745297175060,6.31899045,1582.6,1582.2,13.43150034]
[1745297175207,6.31844033,1582.7,1582.5,3.1912579]
[1745297175409,12.63634404,1582.8,1582.6,4.59562895]
[1745297175614,6.31814541,1582.8,1582.7,1.59562895]
[1745297175841,6.31814541,1582.8,1582.7,1.73856391]
[1745297176226,13.41995526,1583.0,1582.7,1.8017434]
[1745297176427,7.10250584,1583.0,1582.9,1.59562895]
[1745297176641,7.10250584,1583.0,1582.9,1.73406566]
[1745297177644,7.10250584,1583.0,1582.9,1.59562895]
[1745297178147,7.10250584,1583.0,1582.9,1.73406566]
[1745297179072,7.10250584,1583.0,1582.9,4.73406566]
[1745297179073,6.31730584,1583.0,1582.9,4.73406566]
[1745297179469,6.31690644,1583.1,1582.9,6.7652393]
[1745297179667,12.6339698,1583.1,1582.9,6.7652393]
[1745297179836,6.31711939,1583.0,1582.9,6.7652393]
[1745297181671,6.31711939,1583.0,1582.9,0.13843671]
[1745297181842,6.31832779,1582.7,1582.6,3.62680259]
[1745297182175,6.31832779,1582.7,1582.6,6.76180077]
[1745297183669,6.31813869,1582.8,1582.7,3.0]
[1745297183958,6.31774821,1582.9,1582.7,3.7666]
[1745297184163,6.31774821,1582.9,1582.8,3.62680259]
[1745297184668,6.31774821,1582.9,1582.8,3.761933]
[1745297185166,6.31774821,1582.9,1582.8,0.13513041]
[1745297186674,9.05800499,1582.9,1582.8,0.13513041]
[1745297187031,6.31990561,1582.4,1582.2,8.94980259]
[1745297187240,6.31991404,1582.3,1582.2,11.94980259]
[1745297187439,6.31990561,1582.4,1582.3,3.0]
[1745297191574,7.08641404,1582.3,1582.2,5.323]
[1745297191781,7.7184046,1582.3,1582.2,5.323]
[1745297192272,7.08641404,1582.3,1582.2,5.323]
[1745297195442,6.31991404,1582.3,1582.2,5.323]
[1745297197485,6.32031348,1582.2,1582.1,6.62680259]
[1745297197692,6.32031348,1582.2,1582.1,3.0]
[1745297202494,12.64013403,1582.3,1582.1,3.0]
[1745297202697,6.31991404,1582.3,1582.2,3.62680259]
[1745297204088,6.31991404,1582.3,1582.1,11.95080259]
[1745297204290,6.32031348,1582.2,1582.1,11.95080259]
[1745297205991,6.31991404,1582.3,1582.1,11.95080259]
[1745297206164,12.64015863,1582.3,1582.1,11.95080259]
[1745297206692,6.31991404,1582.3,1582.2,3.0]
[1745297213204,7.09801348,1582.2,1582.1,11.95080259]
[1745297213392,9.0718169,1582.2,1582.1,8.324]
[1745297214467,9.0700169,1582.2,1582.1,8.324]
[1745297214692,9.0700169,1582.2,1581.8,5.323]
[1745297214693,6.3215121,1581.9,1581.8,5.323]
[1745297215101,6.3215121,1581.9,1581.8,8.323]
[1745297216719,5.98981,1582.1,1581.9,3.0]
[1745297216720,12.31066876,1582.1,1581.9,3.0]
[1745297216905,5.98981,1582.1,1582.0,6.62680259]
[1745297218019,12.31052297,1582.1,1582.0,6.62680259]
[1745297220182,14.88327326,1582.1,1582.0,3.62680259]
[1745297220514,6.3215121,1581.9,1581.8,8.94980259]
[1745297221014,6.3215121,1581.9,1581.8,11.94980259]
[1745297221602,6.3215121,1581.9,1581.8,5.323]
[1745297221807,7.0974121,1581.9,1581.8,5.323]
[1745297222006,6.32231143,1581.7,1581.6,20.835]
[1745297222714,6.32231143,1581.7,1581.6,23.96496212]
[1745297223310,7.09821143,1581.7,1581.6,3.12996212]
[1745297226521,7.09821143,1581.7,1581.6,0.12996212]
[1745297228987,6.32351081,1581.4,1581.3,3.0]
[1745297229189,7.10541081,1581.4,1581.3,3.12898472]
[1745297229402,7.10541081,1581.4,1581.3,0.12898472]
[1745297229403,8.37009204,1581.4,1581.3,0.12898472]
[1745297232439,14.35990204,1581.4,1581.3,0.12898472]
[1745297232644,6.32511068,1581.0,1580.9,29.78880259]
[1745297232801,6.32511068,1581.0,1580.9,29.91561289]
[1745297233002,6.32511068,1581.0,1580.9,29.2888103]
[1745297233328,6.32511068,1581.0,1580.9,32.91561289]
[1745297240057,6.32489799,1581.1,1581.0,3.0]
[1745297240259,6.32489799,1581.1,1581.0,3.7521]
[1745297240548,6.32450843,1581.2,1581.0,3.88168894]
[1745297240549,12.64909555,1581.2,1581.0,3.88168894]
[1745297240704,6.32450843,1581.2,1581.1,6.62680259]
[1745297241106,6.32450843,1581.2,1581.1,6.75639153]
[1745297246957,7.14920843,1581.2,1581.1,3.75639153]
[1745297247161,9.72793066,1581.2,1581.1,3.75639153]
[1745297249429,6.32450843,1581.2,1581.1,3.75639153]
[1745297249759,6.32362704,1581.4,1581.1,10.92605186]
[1745297249934,6.32362704,1581.4,1581.3,6.62680259]
[1745297250471,6.32362704,1581.4,1581.3,6.75797929]
[1745297251069,6.32362704,1581.4,1581.3,0.1311767]
[1745297251390,6.32431065,1581.2,1581.1,6.62680259]
[1745297251566,6.32409821,1581.3,1581.1,6.62680259]
[1745297252796,6.32409821,1581.3,1581.2,0.12853045]
[1745297253184,6.32409821,1581.3,1581.1,3.62680259]
[1745297253481,6.32409821,1581.3,1581.2,0.12853045]
[1745297253691,6.3233157,1581.5,1581.2,0.84513991]
[1745297253877,6.3239107,1581.3,1581.2,3.12853045]
[1745297257191,7.58865285,1581.3,1581.2,3.12853045]
[1745297258106,6.3239107,1581.3,1581.2,3.12853045]
[1745297261872,7.1129107,1581.3,1581.2,3.12853045]
[1745297262209,7.1129107,1581.3,1581.2,0.12853045]
[1745297262581,7.11371064,1581.1,1581.0,3.0]
[1745297262783,6.32511068,1581.0,1580.9,5.325]
[1745297262997,6.32591093,1580.8,1580.7,6.62680259]
[1745297264977,6.32631112,1580.7,1580.6,5.325]
[1745297265401,6.32631112,1580.7,1580.6,8.95180259]
[1745297265624,6.32631112,1580.7,1580.6,11.95180259]
[1745297266230,6.32631112,1580.7,1580.6,8.325]
[1745297266428,8.38053332,1580.7,1580.6,8.325]
[1745297267098,6.32671137,1580.6,1580.5,3.62680259]
[1745297267722,6.32671137,1580.6,1580.5,3.75484534]
[1745297270315,6.32671137,1580.6,1580.5,0.12804275]
[1745297270520,8.31751684,1580.6,1580.5,0.12804275]
[1745297270849,13.58134332,1580.7,1580.5,0.12804275]
[1745297270850,12.31612112,1580.7,1580.5,0.12804275]
[1745297271008,12.31612112,1580.7,1580.6,3.62680259]
[1745297271403,6.32600528,1580.8,1580.6,3.75669882]
[1745297272335,12.65220996,1580.8,1580.6,3.75669882]
[1745297272720,6.32600528,1580.8,1580.6,3.75669882]
[1745297272927,12.65220553,1580.8,1580.6,3.75669882]
[1745297273436,6.32600528,1580.8,1580.6,3.75669882]
[1745297274737,6.32574916,1580.9,1580.6,3.75669882]
[1745297274924,6.32574916,1580.9,1580.8,3.62680259]
[1745297275453,6.32574916,1580.9,1580.8,3.75603682]
[1745297276357,6.32574916,1580.9,1580.8,6.75603682]
[1745297287408,9.61096523,1580.9,1580.8,3.12923423]
[1745297288360,9.61096523,1580.9,1580.8,0.12923423]
[1745297294071,6.32574916,1580.9,1580.8,0.12923423]
[1745297298313,6.32574916,1580.9,1580.8,3.91513423]
[1745297301821,6.32492084,1581.1,1580.8,3.91513423]
[1745297301996,6.32492084,1581.1,1580.9,0.7859]
[1745297302201,6.32450412,1581.2,1581.0,3.62680259]
[1745297302401,6.32450412,1581.2,1581.0,3.75603676]
[1745297303758,6.32471064,1581.1,1581.0,3.75603676]